fUSD/lending_fUSD_20250217
["ID","MTS","AMOUNT","RATE_DAILY","PERIOD"]
[353402206,1739815877515,-560.89,0.00014356,2]
[353402207,1739815877524,-366.25824352,0.00014356,2]
[353402208,1739815877533,-779.36,0.00014356,2]
[353402209,1739815877543,-500.0,0.00014356,2]
[353402210,1739815877553,-511.33,0.00014356,2]
[353402211,1739815877563,-500.0,0.00014356,2]
[353402212,1739815877572,-500.0,0.00014356,2]
[353402213,1739815877582,-500.0,0.00014356,2]
[353402214,1739815877592,-723.45,0.00014356,2]
[353402215,1739815877602,-826.0,0.00014356,2]
[353402216,1739815877612,-500.0,0.00014356,2]
[353402217,1739815877621,-500.0,0.00014356,2]
[353402218,1739815877631,-500.0,0.00014356,2]
[353402219,1739815877641,-500.0,0.00014356,2]
[353402220,1739815877652,-500.0,0.00014356,2]
[353402221,1739815877663,-500.0,0.00014356,2]
[353402222,1739815877672,-500.0,0.00014356,2]
[353402223,1739815877681,-551.82,0.00014356,2]
[353402224,1739815877691,-500.0,0.00014356,2]
[353402225,1739815877700,-775.48,0.00014356,2]
[353402226,1739815877710,-676.02,0.00014356,2]
[353402227,1739815877720,-799.13,0.00014356,2]
[353402228,1739815877730,-500.0,0.00014356,2]
[353402229,1739815877741,-585.89,0.00014356,2]
[353402230,1739815877751,-361.5,0.00014356,2]
[353402231,1739815877760,-697.45,0.00014356,2]
[353402232,1739815877769,-527.52,0.00014356,2]
[353402233,1739815877779,-634.13,0.00014356,2]
[353402234,1739815877788,-1087.97,0.00014356,2]
[353402235,1739815877797,-781.6,0.00014356,2]
[353402236,1739815877806,-500.0,0.00014356,2]
[353402237,1739815877817,-642.47,0.00014356,2]
[353402238,1739815877826,-500.0,0.00014356,2]
[353402239,1739815877834,-646.88,0.00014356,2]
[353402240,1739815877844,-500.0,0.00014356,2]
[353402241,1739815877853,-627.97,0.00014356,2]
[353402242,1739815877862,-877.35,0.00014356,2]
[353402243,1739815877872,-500.0,0.00014356,2]
[353402244,1739815877882,-501.93,0.00014356,2]
[353402245,1739815877892,-2021.69,0.00014356,2]
[353402246,1739815877902,-500.0,0.00014356,2]
[353402247,1739815877911,-804.35,0.00014356,2]
[353402248,1739815877921,-1178.4,0.00014356,2]
[353402249,1739815877932,-2424.8,0.00014356,2]
[353402250,1739815877943,-713.08,0.00014356,2]
[353402251,1739815877953,-902.8,0.00014356,2]
[353402252,1739815877962,-500.0,0.00014356,2]
[353402253,1739815877971,-1659.27,0.00014356,2]
[353402254,1739815877980,-854.28,0.00014356,2]
[353402255,1739815877990,-772.93,0.00014356,2]
[353402256,1739815877998,-707.88,0.00014356,2]
[353402257,1739815878008,-500.0,0.00014356,2]
[353402258,1739815878018,-1197.12,0.00014356,2]
[353402259,1739815878028,-152.258352,0.00014356,2]
[353402260,1739815878038,-1865.74,0.00014356,2]
[353402261,1739815878047,-953.23,0.00014356,2]
[353402262,1739815878057,-500.0,0.00014356,2]
[353402263,1739815878066,-565.36,0.00014356,2]
[353402264,1739815878076,-2885.55,0.00014356,2]
[353402265,1739815878085,-973.56,0.00014356,2]
[353402266,1739815878094,-803.15,0.00014356,2]
[353402267,1739815878104,-1385.68,0.00014356,2]
[353402268,1739815878113,-974.48,0.00014356,2]
[353402269,1739815878123,-816.48,0.00014356,2]
[353402270,1739815878133,-922.79,0.00014356,2]
[353402271,1739815878142,-585.62,0.00014356,2]
[353402272,1739815878152,-500.0,0.00014356,2]
[353402273,1739815878161,-3073.59,0.00014356,2]
[353402274,1739815878171,-597.4,0.00014356,2]
[353402275,1739815878181,-1321.54,0.00014356,2]
[353402276,1739815878191,-1131.49,0.00014356,2]
[353402277,1739815878201,-500.0,0.00014356,2]
[353402278,1739815878211,-1395.94,0.00014356,2]
[353402279,1739815878222,-1265.98,0.00014356,2]
[353402280,1739815878233,-500.0,0.00014356,2]
[353402281,1739815878243,-500.0,0.00014356,2]
[353402282,1739815878253,-1422.73,0.00014356,2]
[353402283,1739815878263,-1473.58,0.00014356,2]
[353402284,1739815878274,-1479.13,0.00014356,2]
[353402285,1739815878284,-500.0,0.00014356,2]
[353402286,1739815878294,-500.0,0.00014356,2]
[353402287,1739815878304,-500.0,0.00014356,2]
[353402288,1739815878318,-743.0,0.00014356,2]
[353402289,1739815878329,-1202.26,0.00014356,2]
[353402290,1739815878339,-1748.85,0.00014356,2]
[353402291,1739815878350,-1547.54,0.00014356,2]
[353402292,1739815878360,-2001.49,0.00014356,2]
[353402293,1739815878372,-500.0,0.00014356,2]
[353402294,1739815878383,-500.0,0.00014356,2]
[353402295,1739815878393,-1175.35,0.00014356,2]
[353402296,1739815878404,-2574.83,0.00014356,2]
[353402297,1739815878414,-1101.2,0.00014356,2]
[353402298,1739815878425,-500.0,0.00014356,2]
[353402299,1739815878435,-1077.14,0.00014356,2]
[353402300,1739815878446,-1324.81,0.00014356,2]
[353402301,1739815878456,-1466.29,0.00014356,2]
[353402302,1739815878467,-1691.48,0.00014356,2]
[353402303,1739815878477,-1601.82,0.00014356,2]
[353402304,1739815878487,-525.21,0.00014356,2]
[353402305,1739815878498,-1698.43,0.00014356,2]
[353402306,1739815878508,-500.0,0.00014356,2]
[353402307,1739815878517,-500.0,0.00014356,2]
[353402308,1739815878527,-1051.07,0.00014356,2]
[353402309,1739815878540,-1893.07,0.00014356,2]
[353402310,1739815878550,-1434.34,0.00014356,2]
[353402311,1739815878560,-1559.87,0.00014356,2]
[353402312,1739815878571,-4247.72,0.00014356,2]
[353402313,1739815878581,-500.0,0.00014356,2]
[353402314,1739815878592,-697.24,0.00014356,2]
[353402315,1739815878601,-500.0,0.00014356,2]
[353402316,1739815878610,-1490.44,0.00014356,2]
[353402317,1739815878620,-2043.08,0.00014356,2]
[353402318,1739815878630,-1242.96,0.00014356,2]
[353402319,1739815878639,-500.0,0.00014356,2]
[353402320,1739815878649,-794.8,0.00014356,2]
[353402321,1739815878664,-372.73,0.00014356,2]
[353402322,1739815878674,-1947.34,0.00014356,2]
[353402323,1739815878684,-500.0,0.00014356,2]
[353402324,1739815878694,-1505.04,0.00014356,2]
[353402325,1739815878706,-1445.54,0.00014356,2]
[353402326,1739815878716,-500.0,0.00014356,2]
[353402327,1739815878726,-1114.18,0.00014356,2]
[353402328,1739815878737,-845.62,0.00014356,2]
[353402329,1739815878748,-2020.29,0.00014356,2]
[353402330,1739815878758,-500.0,0.00014356,2]
[353402331,1739815878768,-749.69,0.00014356,2]
[353402332,1739815878778,-776.01,0.00014356,2]
[353402333,1739815878788,-832.24,0.00014356,2]
[353402334,1739815878799,-504.07,0.00014356,2]
[353402335,1739815878810,-152.90004645,0.00014356,2]
[353402336,1739815878820,-3601.82,0.00014356,2]
[353402337,1739815878829,-500.0,0.00014356,2]
[353402338,1739815878840,-1526.53,0.00014356,2]
[353402339,1739815878850,-1081.38,0.00014356,2]
[353402340,1739815878860,-1272.95,0.00014356,2]
[353402341,1739815878870,-704.58,0.00014356,2]
[353402342,1739815878880,-691.58,0.00014356,2]
[353402343,1739815878890,-500.0,0.00014356,2]
[353402344,1739815878899,-992.78,0.00014356,2]
[353402345,1739815878909,-596.73,0.00014356,2]
[353402346,1739815878919,-500.0,0.00014356,2]
[353402347,1739815878932,-2407.6,0.00014356,2]
[353402348,1739815878942,-567.36,0.00014356,2]
[353402349,1739815878954,-1300.23,0.00014356,2]
[353402350,1739815878965,-1392.59,0.00014356,2]
[353402351,1739815878975,-2009.2,0.00014356,2]
[353402352,1739815878986,-1615.34,0.00014356,2]
[353402353,1739815878996,-500.0,0.00014356,2]
[353402354,1739815879008,-454.6805348,0.00014356,2]
[353402355,1739815879018,-535.37,0.00014356,2]
[353402356,1739815879029,-1060.0,0.00014356,2]
[353402357,1739815879039,-512.19,0.00014356,2]
[353402358,1739815879050,-1404.72,0.00014356,2]
[353402359,1739815879060,-799.51,0.00014356,2]
[353402360,1739815879070,-2087.18,0.00014356,2]
[353402361,1739815879080,-1446.79,0.00014356,2]
[353402362,1739815879090,-500.0,0.00014356,2]
[353402363,1739815879100,-846.61,0.00014356,2]
[353402364,1739815879110,-713.92,0.00014356,2]
[353402365,1739815879120,-2283.81,0.00014356,2]
[353402366,1739815879130,-500.0,0.00014356,2]
[353402367,1739815879139,-500.0,0.00014356,2]
[353402368,1739815879149,-1112.79,0.00014356,2]
[353402369,1739815879158,-1608.4,0.00014356,2]
[353402370,1739815879168,-532.44,0.00014356,2]
[353402371,1739815879178,-1167.91,0.00014356,2]
[353402372,1739815879188,-500.0,0.00014356,2]
[353402373,1739815879198,-532.72,0.00014356,2]
[353402374,1739815879208,-526.92,0.00014356,2]
[353402375,1739815879393,-827.23,0.00014356,2]
[353402376,1739815879407,-1013.33,0.00014356,2]
[353402377,1739815879418,-500.0,0.00014356,2]
[353402378,1739815879428,-1149.69,0.00014356,2]
[353402379,1739815879438,-1073.86,0.00014356,2]
[353402380,1739815879449,-1210.93,0.00014356,2]
[353402381,1739815879460,-1039.4,0.00014356,2]
[353402382,1739815879470,-714.31,0.00014356,2]
[353402383,1739815879481,-2005.82,0.00014356,2]
[353402384,1739815879492,-727.34,0.00014356,2]
[353402385,1739815879503,-959.95,0.00014356,2]
[353402386,1739815879513,-1713.83,0.00014356,2]
[353402387,1739815879523,-1217.64,0.00014356,2]
[353402388,1739815879533,-1633.21,0.00014356,2]
[353402389,1739815879542,-1264.81,0.00014356,2]
[353402390,1739815879553,-163.94247891,0.00014373,2]
[353402391,1739815879563,-2000.0,0.00014399,2]
[353402392,1739815879573,-2000.0,0.00014399,2]
[353402393,1739815879583,-10781.1118487,0.000144,2]
[353402394,1739815879593,-2670.948,0.00014428,2]
[353402395,1739815879603,-1616.7586024,0.00014428,2]
[353402396,1739815879613,-637.43,0.00014437,2]
[353402397,1739815879623,-1089.39,0.00014437,2]
[353402398,1739815879633,-1212.4,0.00014437,2]
[353402399,1739815879644,-1862.54,0.00014437,2]
[353402400,1739815879654,-4612.02,0.00014437,2]
[353402401,1739815879667,-1025.98,0.00014437,2]
[353402402,1739815879677,-913.35,0.00014437,2]
[353402403,1739815879687,-1384.74,0.00014437,2]
[353402404,1739815879697,-500.0,0.00014437,2]
[353402405,1739815879709,-1205.86,0.00014437,2]
[353402406,1739815879719,-1429.81,0.00014437,2]
[353402407,1739815879729,-1000.0,0.00014437,2]
[353402408,1739815879740,-1276.75,0.00014437,2]
[353402409,1739815879750,-1076.56,0.00014437,2]
[353402410,1739815879760,-1573.44,0.00014437,2]
[353402411,1739815879769,-500.0,0.00014438,2]
[353402412,1739815879779,-241.42512862,0.00014438,2]
[353402413,1739815879788,-500.0,0.00014438,2]
[353402414,1739815879797,-282.09092868,0.00014438,2]
[353402415,1739815879806,-500.0,0.00014438,2]
[353402416,1739815879819,-1029.48,0.00014438,2]
[353402417,1739815879828,-504.67,0.00014438,2]
[353402418,1739815879839,-577.71,0.00014438,2]
[353402419,1739815879852,-659.19,0.00014438,2]
[353402420,1739815879866,-500.0,0.00014438,2]
[353402421,1739815879884,-697.7,0.00014438,2]
[353402422,1739815879896,-501.93,0.00014438,2]
[353402423,1739815879906,-500.0,0.00014438,2]
[353402424,1739815879915,-737.52,0.00014438,2]
[353402425,1739815879925,-500.0,0.00014438,2]
[353402426,1739815879934,-500.0,0.00014438,2]
[353402427,1739815879944,-500.0,0.00014438,2]
[353402428,1739815879953,-724.27,0.00014438,2]
[353402429,1739815879963,-500.0,0.00014438,2]
[353402430,1739815879972,-692.38,0.00014438,2]
[353402431,1739815879983,-500.0,0.00014438,2]
[353402432,1739815879992,-500.0,0.00014438,2]
[353402433,1739815880002,-500.0,0.00014438,2]
[353402434,1739815880012,-500.0,0.00014438,2]
[353402435,1739815880021,-500.0,0.00014438,2]
[353402436,1739815880031,-500.0,0.00014438,2]
[353402437,1739815880040,-652.56,0.00014438,2]
[353402438,1739815880050,-500.0,0.00014438,2]
[353402439,1739815880061,-500.0,0.00014438,2]
[353402440,1739815880070,-500.0,0.00014438,2]
[353402441,1739815880079,-506.07,0.00014438,2]
[353402442,1739815880089,-500.0,0.00014438,2]
[353402443,1739815880099,-571.18,0.00014438,2]
[353402444,1739815880109,-500.0,0.00014438,2]
[353402445,1739815880119,-507.51,0.00014438,2]
[353402446,1739815880129,-589.27,0.00014438,2]
[353402447,1739815880138,-721.7,0.00014438,2]
[353402448,1739815880148,-556.58,0.00014438,2]
[353402449,1739815880157,-500.0,0.00014438,2]
[353402450,1739815880167,-500.0,0.00014438,2]
[353402451,1739815880178,-500.0,0.00014438,2]
[353402452,1739815880187,-500.0,0.00014438,2]
[353402453,1739815880197,-664.44,0.00014438,2]
[353402454,1739815880207,-500.0,0.00014438,2]
[353402455,1739815880217,-500.0,0.00014438,2]
[353402456,1739815880226,-527.83,0.00014438,2]
[353402457,1739815880235,-557.1,0.00014438,2]
[353402458,1739815880245,-500.0,0.00014438,2]
[353402459,1739815880255,-500.0,0.00014438,2]
[353402460,1739815880264,-621.01,0.00014438,2]
[353402461,1739815880273,-609.03,0.00014438,2]
[353402462,1739815880282,-660.07,0.00014438,2]
[353402463,1739815880292,-500.0,0.00014438,2]
[353402464,1739815880301,-500.0,0.00014438,2]
[353402465,1739815880312,-685.59,0.00014438,2]
[353402466,1739815880321,-500.0,0.00014438,2]
[353402467,1739815880330,-529.48,0.00014438,2]
[353402468,1739815880339,-500.0,0.00014438,2]
[353402469,1739815880350,-500.0,0.00014438,2]
[353402470,1739815880360,-500.0,0.00014438,2]
[353402471,1739815880371,-879.53,0.00014438,2]
[353402472,1739815880380,-872.31,0.00014438,2]
[353402473,1739815880389,-500.0,0.00014438,2]
[353402474,1739815880399,-500.0,0.00014438,2]
[353402475,1739815880409,-500.0,0.00014438,2]
[353402476,1739815880419,-548.33,0.00014438,2]
[353402477,1739815880429,-502.61,0.00014438,2]
[353402478,1739815880438,-884.35,0.00014438,2]
[353402479,1739815880448,-527.868759,0.00014438,2]
[353402480,1739815880457,-630.35,0.00014438,2]
[353402481,1739815880466,-507.26,0.00014438,2]
[353402482,1739815880476,-1128.77,0.00014438,2]
[353402483,1739815880485,-500.0,0.00014438,2]
[353402484,1739815880495,-689.9,0.00014438,2]
[353402485,1739815880505,-500.0,0.00014438,2]
[353402486,1739815880514,-504.07,0.00014438,2]
[353402487,1739815880524,-500.0,0.00014438,2]
[353402488,1739815880533,-500.0,0.00014438,2]
[353402489,1739815880543,-500.0,0.00014438,2]
[353402490,1739815880552,-610.26,0.00014438,2]
[353402491,1739815880562,-500.0,0.00014438,2]
[353402492,1739815880572,-500.0,0.00014438,2]
[353402493,1739815880582,-465.181699,0.00014438,2]
[353402494,1739815880592,-500.0,0.00014438,2]
[353402495,1739815880602,-500.0,0.00014438,2]
[353402496,1739815880611,-500.0,0.00014438,2]
[353402497,1739815880621,-500.0,0.00014438,2]
[353402498,1739815880630,-500.0,0.00014438,2]
[353402499,1739815880641,-560.89,0.00014438,2]
[353402500,1739815880650,-779.36,0.00014438,2]
[353402501,1739815880662,-500.0,0.00014438,2]
[353402502,1739815880673,-511.33,0.00014438,2]
[353402503,1739815880683,-500.0,0.00014438,2]
[353402504,1739815880693,-500.0,0.00014438,2]
[353402505,1739815880706,-500.0,0.00014438,2]
[353402506,1739815880715,-723.45,0.00014438,2]
[353402507,1739815880725,-826.0,0.00014438,2]
[353402508,1739815880735,-500.0,0.00014438,2]
[353402509,1739815880747,-500.0,0.00014438,2]
[353402510,1739815880758,-500.0,0.00014438,2]
[353402511,1739815880767,-500.0,0.00014438,2]
[353402512,1739815880776,-500.0,0.00014438,2]
[353402513,1739815880786,-500.0,0.00014438,2]
[353402514,1739815880795,-500.0,0.00014438,2]
[353402515,1739815880804,-551.82,0.00014438,2]
[353402516,1739815880815,-500.0,0.00014438,2]
[353402517,1739815880824,-775.48,0.00014438,2]
[353402518,1739815880834,-676.02,0.00014438,2]
[353402519,1739815880844,-799.13,0.00014438,2]
[353402520,1739815880854,-500.0,0.00014438,2]
[353402521,1739815880863,-697.45,0.00014438,2]
[353402522,1739815880873,-527.52,0.00014438,2]
[353402523,1739815880882,-634.13,0.00014438,2]
[353402524,1739815880891,-1087.97,0.00014438,2]
[353402525,1739815880901,-781.6,0.00014438,2]
[353402526,1739815880911,-500.0,0.00014438,2]
[353402527,1739815880920,-642.47,0.00014438,2]
[353402528,1739815880929,-500.0,0.00014438,2]
[353402529,1739815880939,-646.88,0.00014438,2]
[353402530,1739815880948,-500.0,0.00014438,2]
[353402531,1739815880958,-627.97,0.00014438,2]
[353402532,1739815880968,-877.35,0.00014438,2]
[353402533,1739815880977,-500.0,0.00014438,2]
[353402534,1739815880986,-501.93,0.00014438,2]
[353402535,1739815880995,-2021.69,0.00014438,2]
[353402536,1739815881005,-500.0,0.00014438,2]
[353402537,1739815881015,-804.35,0.00014438,2]
[353402538,1739815881025,-1178.4,0.00014438,2]
[353402539,1739815881035,-2424.8,0.00014438,2]
[353402540,1739815881044,-713.08,0.00014438,2]
[353402541,1739815881054,-902.8,0.00014438,2]
[353402542,1739815881063,-500.0,0.00014438,2]
[353402543,1739815881072,-1659.27,0.00014438,2]
[353402544,1739815881081,-854.28,0.00014438,2]
[353402545,1739815881091,-772.93,0.00014438,2]
[353402546,1739815881102,-707.88,0.00014438,2]
[353402547,1739815881111,-500.0,0.00014438,2]
[353402548,1739815881121,-1197.12,0.00014438,2]
[353402549,1739815881132,-152.258352,0.00014438,2]
[353402550,1739815881142,-1865.74,0.00014438,2]
[353402551,1739815881152,-953.23,0.00014438,2]
[353402552,1739815881162,-500.0,0.00014438,2]
[353402553,1739815881171,-565.36,0.00014438,2]
[353402554,1739815881180,-2885.55,0.00014438,2]
[353402555,1739815881190,-973.56,0.00014438,2]
[353402556,1739815881199,-803.15,0.00014438,2]
[353402557,1739815881210,-1385.68,0.00014438,2]
[353402558,1739815881220,-974.48,0.00014438,2]
[353402559,1739815881229,-816.48,0.00014438,2]
[353402560,1739815881239,-922.79,0.00014438,2]
[353402561,1739815881248,-585.62,0.00014438,2]
[353402562,1739815881258,-500.0,0.00014438,2]
[353402563,1739815881267,-3073.59,0.00014438,2]
[353402564,1739815881277,-597.4,0.00014438,2]
[353402565,1739815881286,-1321.54,0.00014438,2]
[353402566,1739815881297,-1131.49,0.00014438,2]
[353402567,1739815881307,-272.49297465,0.00014438,2]
[353402568,1739815881319,-1395.94,0.00014438,2]
[353402569,1739815881329,-1265.98,0.00014438,2]
[353402570,1739815881339,-500.0,0.00014438,2]
[353402571,1739815881349,-500.0,0.00014438,2]
[353402572,1739815881359,-1422.73,0.00014438,2]
[353402573,1739815881368,-1473.58,0.00014438,2]
[353402574,1739815881378,-1479.13,0.00014438,2]
[353402575,1739815881388,-500.0,0.00014438,2]
[353402576,1739815881397,-1202.26,0.00014438,2]
[353402577,1739815881407,-1748.85,0.00014438,2]
[353402578,1739815881415,-1547.54,0.00014438,2]
[353402579,1739815881425,-2001.49,0.00014438,2]
[353402580,1739815881434,-500.0,0.00014438,2]
[353402581,1739815881444,-500.0,0.00014438,2]
[353402582,1739815881455,-1175.35,0.00014438,2]
[353402583,1739815881465,-1101.2,0.00014438,2]
[353402584,1739815881475,-2574.83,0.00014438,2]
[353402585,1739815881485,-500.0,0.00014438,2]
[353402586,1739815881495,-1077.14,0.00014438,2]
[353402587,1739815881505,-1324.81,0.00014438,2]
[353402588,1739815881515,-1466.29,0.00014438,2]
[353402589,1739815881525,-1691.48,0.00014438,2]
[353402590,1739815881535,-1601.82,0.00014438,2]
[353402591,1739815881545,-525.21,0.00014438,2]
[353402592,1739815881554,-1698.43,0.00014438,2]
[353402593,1739815881567,-500.0,0.00014438,2]
[353402594,1739815881576,-500.0,0.00014438,2]
[353402595,1739815881585,-1051.07,0.00014438,2]
[353402596,1739815881595,-1893.07,0.00014438,2]
[353402597,1739815881605,-1434.34,0.00014438,2]
[353402598,1739815881614,-1559.87,0.00014438,2]
[353402599,1739815881623,-4247.72,0.00014438,2]
[353402600,1739815881633,-500.0,0.00014438,2]
[353402601,1739815881642,-697.24,0.00014438,2]
[353402602,1739815881652,-1490.44,0.00014438,2]
[353402603,1739815881665,-500.0,0.00014438,2]
[353402604,1739815881674,-2043.08,0.00014438,2]
[353402605,1739815881684,-1242.96,0.00014438,2]
[353402606,1739815881693,-500.0,0.00014438,2]
[353402607,1739815881703,-794.8,0.00014438,2]
[353402608,1739815881712,-1947.34,0.00014438,2]
[353402609,1739815881721,-500.0,0.00014438,2]
[353402610,1739815881732,-1505.04,0.00014438,2]
[353402611,1739815881743,-1445.54,0.00014438,2]
[353402612,1739815881752,-1114.18,0.00014438,2]
[353402613,1739815881762,-500.0,0.00014438,2]
[353402614,1739815881771,-845.62,0.00014438,2]
[353402615,1739815881781,-2020.29,0.00014438,2]
[353402616,1739815881791,-500.0,0.00014438,2]
[353402617,1739815881802,-749.69,0.00014438,2]
[353402618,1739815881811,-776.01,0.00014438,2]
[353402619,1739815881824,-832.24,0.00014438,2]
[353402620,1739815881834,-504.07,0.00014438,2]
[353402621,1739815881843,-500.0,0.00014438,2]
[353402622,1739815881853,-3601.82,0.00014438,2]
[353402623,1739815881863,-1526.53,0.00014438,2]
[353402624,1739815881929,-1081.38,0.00014438,2]
[353402625,1739815881939,-1272.95,0.00014438,2]
[353402626,1739815881951,-704.58,0.00014438,2]
[353402627,1739815881960,-691.58,0.00014438,2]
[353402628,1739815881969,-500.0,0.00014438,2]
[353402629,1739815881978,-992.78,0.00014438,2]
[353402630,1739815881987,-596.73,0.00014438,2]
[353402631,1739815881996,-500.0,0.00014438,2]
[353402632,1739815882005,-2407.6,0.00014438,2]
[353402633,1739815882015,-1300.23,0.00014438,2]
[353402634,1739815882025,-1392.59,0.00014438,2]
[353402635,1739815882034,-2009.2,0.00014438,2]
[353402636,1739815882043,-1615.34,0.00014438,2]
[353402637,1739815882052,-500.0,0.00014438,2]
[353402638,1739815882061,-535.37,0.00014438,2]
[353402639,1739815882072,-1060.0,0.00014438,2]
[353402640,1739815882082,-512.19,0.00014438,2]
[353402641,1739815882091,-1404.72,0.00014438,2]
[353402642,1739815882100,-799.51,0.00014438,2]
[353402643,1739815882109,-2087.18,0.00014438,2]
[353402644,1739815882118,-1446.79,0.00014438,2]
[353402645,1739815882127,-500.0,0.00014438,2]
[353402646,1739815882136,-846.61,0.00014438,2]
[353402647,1739815882146,-713.92,0.00014438,2]
[353402648,1739815882155,-2283.81,0.00014438,2]
[353402649,1739815882164,-161.78178323,0.00014438,2]
[353402650,1739815882174,-500.0,0.00014438,2]
[353402651,1739815882183,-1112.79,0.00014438,2]
[353402652,1739815882192,-1608.4,0.00014438,2]
[353402653,1739815882201,-532.44,0.00014438,2]
[353402654,1739815882212,-1167.91,0.00014438,2]
[353402655,1739815882222,-500.0,0.00014438,2]
[353402656,1739815882231,-532.72,0.00014438,2]
[353402657,1739815882240,-526.92,0.00014438,2]
[353402658,1739815882250,-827.23,0.00014438,2]
[353402659,1739815882259,-1013.33,0.00014438,2]
[353402660,1739815882268,-500.0,0.00014438,2]
[353402661,1739815882277,-1149.69,0.00014438,2]
[353402662,1739815882286,-1073.86,0.00014438,2]
[353402663,1739815882296,-1210.93,0.00014438,2]
[353402664,1739815882307,-1039.4,0.00014438,2]
[353402665,1739815882318,-714.31,0.00014438,2]
[353402666,1739815882328,-2005.82,0.00014438,2]
[353402667,1739815882337,-727.34,0.00014438,2]
[353402668,1739815882347,-959.95,0.00014438,2]
[353402669,1739815882356,-1713.83,0.00014438,2]
[353402670,1739815882366,-1217.64,0.00014438,2]
[353402671,1739815882375,-1633.21,0.00014438,2]
[353402672,1739815882384,-500.0,0.00014465,2]
[353402673,1739815882393,-207.0,0.0001449,2]
[353402674,1739815882403,-172.548647,0.000145,4]
[353402675,1739815882412,-1112.1056282,0.0001451,2]
[353402676,1739815882422,-368.1159659,0.0001451,2]
[353402677,1739815882431,-300.7658296,0.0001451,2]
[353402678,1739815882440,-680.21,0.00014519,2]
[353402679,1739815882450,-1089.39,0.00014519,2]
[353402680,1739815882458,-1212.4,0.00014519,2]
[353402681,1739815882467,-1862.54,0.00014519,2]
[353402682,1739815882476,-4612.02,0.00014519,2]
[353402683,1739815882485,-1025.98,0.00014519,2]
[353402684,1739815882494,-913.35,0.00014519,2]
[353402685,1739815882504,-1384.74,0.00014519,2]
[353402686,1739815882513,-500.0,0.00014519,2]
[353402687,1739815882524,-1205.86,0.00014519,2]
[353402688,1739815882534,-1429.81,0.00014519,2]
[353402689,1739815882544,-1000.0,0.00014519,2]
[353402690,1739815882554,-1276.75,0.00014519,2]
[353402691,1739815882563,-1076.56,0.00014519,2]
[353402692,1739815882574,-1573.44,0.00014519,2]
[353402693,1739815882583,-500.0,0.0001452,2]
[353402694,1739815882592,-500.0,0.0001452,2]
[353402695,1739815882601,-500.0,0.0001452,2]
[353402696,1739815882611,-1029.48,0.0001452,2]
[353402697,1739815882620,-504.67,0.0001452,2]
[353402698,1739815882629,-577.71,0.0001452,2]
[353402699,1739815882638,-659.19,0.0001452,2]
[353402700,1739815882647,-500.0,0.0001452,2]
[353402701,1739815882658,-697.7,0.0001452,2]
[353402702,1739815882670,-501.93,0.0001452,2]
[353402703,1739815882679,-500.0,0.0001452,2]
[353402704,1739815882688,-737.52,0.0001452,2]
[353402705,1739815882699,-500.0,0.0001452,2]